﻿Departmental family,Entity,Date Paid,Expense type,Expense Area,Supplier,Transaction Number,Amount,Description,Supplier Type,Expenditure Type
UK Statistics Authority,Office for National Statistics,2 July 2018,Surveys,Public Policy Analysis,Kantar Public,92444," 431,522.78 ", Information Management Services,SME,Programme
UK Statistics Authority,Office for National Statistics,2 July 2018,IT Contractual Services,Digital Services and Technology,Mango Solutions,92445," 61,932.00 ", Information Management Services,SME,Programme
UK Statistics Authority,Office for National Statistics,2 July 2018,Contractors,Digital Services and Technology,E Synergy Solutions,92447," 27,600.00 ", Information Management Services ,SME,Programme
UK Statistics Authority,Office for National Statistics,2 July 2018,IT Contractual Services,Digital Services and Technology,E Synergy Solutions,92447," 49,644.00 ", Information Management Services ,SME,Programme
UK Statistics Authority,Office for National Statistics,2 July 2018,IT Contractual Services,Digital Services and Technology,E Synergy Solutions,92447," 64,050.00 ", Information Management Services ,SME,Programme
UK Statistics Authority,Office for National Statistics,2 July 2018,IT Contractual Services,Digital Services and Technology,E Synergy Solutions,92447," 14,400.00 ", Information Management Services ,SME,Programme
UK Statistics Authority,Office for National Statistics,2 July 2018,IT Contractual Services,Digital Services and Technology,E Synergy Solutions,92447," 28,463.30 ", Information Management Services ,SME,Programme
UK Statistics Authority,Office for National Statistics,2 July 2018,IT Contractual Services,Digital Services and Technology,E Synergy Solutions,92447," 207,980.40 ", Information Management Services ,SME,Programme
UK Statistics Authority,Office for National Statistics,2 July 2018,IT Contractual Services,Digital Services and Technology,E Synergy Solutions,92447," 22,286.30 ", Information Management Services ,SME,Programme
UK Statistics Authority,Office for National Statistics,2 July 2018,Surveys,"Methods, Data and Research",NatCen Social Research,92448," 16,017.60 ", Information Management Services,Large,Programme
UK Statistics Authority,Office for National Statistics,2 July 2018,Surveys,"Public, Population and Policy",NatCen Social Research,92448," 775,260.68 ", Information Management Services,Large,Programme
UK Statistics Authority,Office for National Statistics,2 July 2018,ICT Outsourcing and Maintenance/Support,Digital Services and Technology,Equiniti Limited,92454," 10,547.34 ", Information Management Services,Large,Programme
UK Statistics Authority,Office for National Statistics,2 July 2018,ICT Outsourcing and Maintenance/Support,Digital Services and Technology,Equiniti Limited,92454," 36,665.46 ", Information Management Services,Large,Programme
UK Statistics Authority,Office for National Statistics,2 July 2018,ICT Outsourcing and Maintenance/Support,Digital Services and Technology,Phoenix Software Ltd,92455," 17,765.83 ", Software Licenses,SME,Programme
UK Statistics Authority,Office for National Statistics,2 July 2018,IT Purchases > 2K,Digital Services and Technology,Phoenix Software Ltd,92455," 75,337.44 ", Software Licenses,SME,Programme
UK Statistics Authority,Office for National Statistics,2 July 2018,Postage,"Public, Population and Policy",UK Mail,92457," 40,427.64 ", Outgoing Post,Large,Programme
UK Statistics Authority,Office for National Statistics,2 July 2018,Contractors,Digital Services and Technology,Medley Business Solutions Ltd,92460," 37,090.27 ", Information Management Services,Large,Programme
UK Statistics Authority,Office for National Statistics,2 July 2018,Contractors,Digital Services and Technology,Medley Business Solutions Ltd,92460," 30,634.58 ", Information Management Services,Large,Programme
UK Statistics Authority,Office for National Statistics,2 July 2018,IT Contractual Services,Digital Services and Technology,QA Ltd,92465," 127,260.00 ", Information Management Services,Large,Programme
UK Statistics Authority,Office for National Statistics,2 July 2018,ICT Outsourcing and Maintenance/Support,Digital Services and Technology,Computacenter (UK) Limited,92467," 148,443.97 ", Information Management services,Large,Programme
UK Statistics Authority,Office for National Statistics,2 July 2018,GSS Recruitment,"Finance, Audit and Business Development",Cabinet Office,92471," 11,013.93 ", Recruitment Fees,Large,Programme
UK Statistics Authority,Office for National Statistics,2 July 2018,GSS Recruitment,"Finance, Audit and Business Development",Cabinet Office,92471," 55,902.67 ", Recruitment Fees,Large,Programme
UK Statistics Authority,Office for National Statistics,2 July 2018,GSS Recruitment,People and Business Services,Cabinet Office,92471," 8,010.13 ", Recruitment Fees,Large,Programme
UK Statistics Authority,Office for National Statistics,2 July 2018,GSS Recruitment,Policy and Communication,Cabinet Office,92471," 27,951.34 ", Recruitment Fees,Large,Programme
UK Statistics Authority,Office for National Statistics,2 July 2018,Training and Development,People and Business Services,Cabinet Office,92471, 655.33 , Recruitment Fees,Large,Programme
UK Statistics Authority,Office for National Statistics,2 July 2018,ICT Outsourcing and Maintenance/Support,"Public, Population and Policy",Totalmobile Ltd,92473," 143,186.40 ", G-Cloud 9 Services,SME,Programme
UK Statistics Authority,Office for National Statistics,2 July 2018,Surveys,National Accounts and Economic Statistics,IFF Research,92475," 66,046.80 ", Statistical Services,Large,Programme
UK Statistics Authority,Office for National Statistics,3 July 2018,Incentive Payments,"Public, Population and Policy",Park Retail Ltd,92985," 6,577.28 ", Social Surveys Incentive Vouchers,Large,Programme
UK Statistics Authority,Office for National Statistics,3 July 2018,Incentive Payments,"Public, Population and Policy",Park Retail Ltd,92985," 50,434.01 ", Social Surveys Incentive Vouchers,Large,Programme
UK Statistics Authority,Office for National Statistics,3 July 2018,Incentive Payments,"Public, Population and Policy",Park Retail Ltd,92985," 7,443.08 ", Social Surveys Incentive Vouchers,Large,Programme
UK Statistics Authority,Office for National Statistics,3 July 2018,Incentive Payments,"Public, Population and Policy",Park Retail Ltd,92985," 5,652.66 ", Social Surveys Incentive Vouchers,Large,Programme
UK Statistics Authority,Office for National Statistics,3 July 2018,Incentive Payments,"Public, Population and Policy",Park Retail Ltd,92985," 10,032.31 ", Social Surveys Incentive Vouchers,Large,Programme
UK Statistics Authority,Office for National Statistics,3 July 2018,Telecommunications,Digital Services and Technology,BT Global Services,92988," 49,105.91 ", Information Management Services,Large,Programme
UK Statistics Authority,Office for National Statistics,3 July 2018,IT Contractual Services,Digital Services and Technology,Armakuni Ltd,93002," 67,076.00 ", Information Management Services,SME,Programme
UK Statistics Authority,Office for National Statistics,4 July 2018,IT Contractual Services,Digital Services and Technology,E Synergy Solutions,93005," 27,072.00 ", Information Management Services ,SME,Programme
UK Statistics Authority,Office for National Statistics,4 July 2018,ICT Outsourcing and Maintenance/Support,Digital Sevices and Technology,SCC,93007," 7,326.00 ", Information Management Services,Large,Programme
UK Statistics Authority,Office for National Statistics,4 July 2018,IT Purchases > 2K,Digital Sevices and Technology,SCC,93007, 300.00 , Information Management Services,Large,Programme
UK Statistics Authority,Office for National Statistics,4 July 2018,Oracle Cloud ERP Licences,"Finance, Audit and Business Development",SCC,93007," 66,171.92 ", Information Management Services,Large,Programme
UK Statistics Authority,Office for National Statistics,4 July 2018,Travel and Subsistence,"Finance, Audit and Business Development",Corporate Travel Management ,93008," 49,908.93 ", Travel and Accommodation Booking Service ,SME,Programme
UK Statistics Authority,Office for National Statistics,4 July 2018,Consultancy,"Public, Population and Policy",Deloitte,93011," 912,684.78 ", Information Management Services,Large,Programme
UK Statistics Authority,Office for National Statistics,4 July 2018,Contractors,Economic Statistics Transformation,Parity Resources Limited,93012, 442.56 , Information Management Services,Large,Programme
UK Statistics Authority,Office for National Statistics,4 July 2018,Contractors,Policy and Communication,Parity Resources Limited,93012," 14,161.68 ", Information Management Services,Large,Programme
UK Statistics Authority,Office for National Statistics,4 July 2018,Contractors,"Public, Population and Policy",Parity Resources Limited,93012," 4,325.40 ", Information Management Services,Large,Programme
UK Statistics Authority,Office for National Statistics,4 July 2018,Short-Term Contract and Agency Staff,Economic Statistics Transformation,Parity Resources Limited,93012," 3,478.13 ", Information Management Services,Large,Programme
UK Statistics Authority,Office for National Statistics,4 July 2018,Short-Term Contract and Agency Staff,National Accounts and Economic Statistics,Parity Resources Limited,93012," 2,460.96 ", Information Management Services,Large,Programme
UK Statistics Authority,Office for National Statistics,4 July 2018,Short-Term Contract and Agency Staff,National Accounts and Economic Statistics,Parity Resources Limited,93012," 3,194.12 ", Information Management Services,Large,Programme
UK Statistics Authority,Office for National Statistics,4 July 2018,Short-Term Contract and Agency Staff,National Accounts and Economic Statistics,Parity Resources Limited,93012, 1.98 , Information Management Services,Large,Programme
UK Statistics Authority,Office for National Statistics,4 July 2018,Short-Term Contract and Agency Staff,People and Business Services,Parity Resources Limited,93012," 4,785.78 ", Information Management Services,Large,Programme
UK Statistics Authority,Office for National Statistics,4 July 2018,Short-Term Contract and Agency Staff,"Public, Population and Policy",Parity Resources Limited,93012," 1,245.08 ", Information Management Services,Large,Programme
UK Statistics Authority,Office for National Statistics,4 July 2018,Capital Major Works > 25K,People and Business Services,Hawkings Cladding Ltd,93015," 125,529.10 ", Newport Cladding ,SME,Programme
UK Statistics Authority,Office for National Statistics,4 July 2018,Major Works Over 25K,People and Business Services,Hawkings Cladding Ltd,93015," 22,152.19 ", Newport Cladding ,SME,Programme
UK Statistics Authority,Office for National Statistics,4 July 2018,Non-IT Contractual Payments,Policy and Communication,Four Communications Group Limited,93017," 46,411.20 ", Information Management Services,SME,Programme
UK Statistics Authority,Office for National Statistics,5 July 2018,Telecommunications,Digital Services and Technology,Vodafone Corporate Ltd,93391," 70,645.96 ", Information Management Services,Large,Programme
UK Statistics Authority,Office for National Statistics,5 July 2018,ICT Outsourcing and Maintenance/Support,Digital Services and Technology,Clearvision-Cm,93393," 62,137.70 ", Information Management Services,SME,Programme
UK Statistics Authority,Office for National Statistics,5 July 2018,Telecommunications,Digital Services and Technology,BT Global Services,93394," 22,632.00 ", Information Management Services,Large,Programme
UK Statistics Authority,Office for National Statistics,5 July 2018,Telecommunications,"Public, Population and Policy",BT Global Services,93394," 9,883.49 ", Information Management Services,Large,Programme
UK Statistics Authority,Office for National Statistics,5 July 2018,ICT Outsourcing and Maintenance/Support,Digital Services and Technology,Computacenter (UK) Limited,93398," 54,632.62 ", Information Management services,Large,Programme
UK Statistics Authority,Office for National Statistics,5 July 2018,IT Management and Change,Digital Services and Technology,Computacenter (UK) Limited,93398," 1,232.64 ", Information Management services,Large,Programme
UK Statistics Authority,Office for National Statistics,5 July 2018,IT Purchases > 2K,Digital Services and Technology,Computacenter (UK) Limited,93398," 47,209.68 ", Computer Hardware,Large,Programme
UK Statistics Authority,Office for National Statistics,6 July 2018,ICT Outsourcing and Maintenance/Support,"Finance, Audit & Business Development",Certus Solutions Consulting Services Ltd,93400," 108,600.00 ", Information Management Services,SME,Programme
UK Statistics Authority,Office for National Statistics,6 July 2018,Consultancy,Economic Statistics Transformation,NIESR,93408," 349,704.78 ", Information Management Services,SME,Programme
UK Statistics Authority,Office for National Statistics,6 July 2018,Childcare Services,Childcare Services,Computershare Voucher Services,93410," 39,748.79 ", Childcare Vouchers ,Large,Programme
UK Statistics Authority,Office for National Statistics,6 July 2018,Childcare Services,"Finance, Audit and Business Development",Computershare Voucher Services,93410," 3,100.40 ", Childcare Vouchers ,Large,Programme
UK Statistics Authority,Office for National Statistics,9 July 2018,Surveys,National Accounts and Economic Statistics,University of Durham,93670," 178,873.20 ", Statistical Services,Large,Programme
UK Statistics Authority,Office for National Statistics,9 July 2018,Capital Major Works > 25K,People and Business Services,Paramount Office Interiors Ltd,93689," 175,389.68 ", Major Works Titchfield,SME,Programme
UK Statistics Authority,Office for National Statistics,9 July 2018,Major Works Over 25K,People and Business Services,Paramount Office Interiors Ltd,93689," 15,358.68 ", Major Works London,SME,Programme
UK Statistics Authority,Office for National Statistics,9 July 2018,Major Works Over 25K,People and Business Services,Paramount Office Interiors Ltd,93689," 14,014.12 ", Major Works Newport,SME,Programme
UK Statistics Authority,Office for National Statistics,9 July 2018,Major Works Over 25K,People and Business Services,Paramount Office Interiors Ltd,93689," 242,204.81 ", Major Works Titchfield,SME,Programme
UK Statistics Authority,Office for National Statistics,9 July 2018,ICT Outsourcing and Maintenance/Support,Digital Services and Technology,Computacenter (UK) Limited,93691," 105,483.70 ", Information Management services,Large,Programme
UK Statistics Authority,Office for National Statistics,9 July 2018,ICT Outsourcing and Maintenance/Support,Digital Services and Technology,Computacenter (UK) Limited,93691," 5,295.60 ", Information Management services,Large,Programme
UK Statistics Authority,Office for National Statistics,9 July 2018,IT Management and Change,Digital Services and Technology,Computacenter (UK) Limited,93691," 25,107.00 ", Information Management services,Large,Programme
UK Statistics Authority,Office for National Statistics,9 July 2018,IT Purchases > 2K,Digital Services and Technology,Computacenter (UK) Limited,93691," 1,339,710.11 ", Computer Hardware,Large,Programme
UK Statistics Authority,Office for National Statistics,9 July 2018,Software Pool 4 Year,Digital Services and Technology,Computacenter (UK) Limited,93691," 9,350.95 ", Software Licenses,Large,Programme
UK Statistics Authority,Office for National Statistics,10 July 2018,Accommodation and Building Management - Specialist Property,People and Business Services,Vinci Construction UK Limited,93970," 30,000.00 ", Facility Management Services,Large,Programme
UK Statistics Authority,Office for National Statistics,10 July 2018,Capital Major Works > 25K,People and Business Services,Vinci Construction UK Limited,93970," 28,300.80 ", Major Works Titchfield,Large,Programme
UK Statistics Authority,Office for National Statistics,10 July 2018,Major Works Over 25K,People and Business Services,Vinci Construction UK Limited,93970," 11,258.40 ", Major Works Newport,Large,Programme
UK Statistics Authority,Office for National Statistics,10 July 2018,Contractors,Digital Services and Technology,Empiric Solutions Limited,93971," 16,310.88 ", Information Management Services,Large,Programme
UK Statistics Authority,Office for National Statistics,10 July 2018,Contractors,Digital Services and Technology,Empiric Solutions Limited,93971," 11,730.00 ", Information Management Services,Large,Programme
UK Statistics Authority,Office for National Statistics,10 July 2018,Contractors,Digital Services and Technology,LA International,93984," 14,063.95 ", Information Management Services,SME,Programme
UK Statistics Authority,Office for National Statistics,10 July 2018,Contractors,National Accounts and Economic Statistics,LA International,93984," 2,563.10 ", Information Management Services,SME,Programme
UK Statistics Authority,Office for National Statistics,10 July 2018,Contractors,People and Business Services,LA International,93984," 12,583.54 ", Information Management Services,SME,Programme
UK Statistics Authority,Office for National Statistics,10 July 2018,ICT Outsourcing and Maintenance/Support,Digital Services and Technology,Mosaic Island,93990," 26,964.00 ", Information Management Services,Large,Programme
UK Statistics Authority,Office for National Statistics,11 July 2018,Surveys,National Accounts and Economic Statistics,Kantar Public,94316," 1,710.00 ", Information Management Services,SME,Programme
UK Statistics Authority,Office for National Statistics,11 July 2018,Surveys,National Accounts and Economic Statistics,Kantar Public,94316," 185,928.90 ", Information Management Services,SME,Programme
UK Statistics Authority,Office for National Statistics,11 July 2018,ICT Outsourcing and Maintenance/Support,Digital Services and Technology,Crown Hosting Data Centres Limited,94319," 1,507.80 ", Cloud Services,SME,Programme
UK Statistics Authority,Office for National Statistics,11 July 2018,ICT Outsourcing and Maintenance/Support,Digital Services and Technology,Crown Hosting Data Centres Limited,94319," 30,899.58 ", Cloud Services,SME,Programme
UK Statistics Authority,Office for National Statistics,11 July 2018,Facilities Management Contract Payments,"Finance, Audit and Business Development",Vinci Construction UK Limited,94320," 87,715.68 ", Facility Management Services,Large,Programme
UK Statistics Authority,Office for National Statistics,11 July 2018,Facilities Management Contract Payments,People and Business Services,Vinci Construction UK Limited,94320, 498.06 , Facility Management Services,Large,Programme
UK Statistics Authority,Office for National Statistics,11 July 2018,IT Contractual Services,Digital Services and Technology,Concept Information Technology Ltd T/A Concept Resourcing,94322," 31,260.00 ", Information Management Services,Large,Programme
UK Statistics Authority,Office for National Statistics,11 July 2018,Short-Term Contract and Agency Staff,Economic Statistics Transformation,Concept Information Technology Ltd T/A Concept Resourcing,94322," 5,389.17 ", Information Management Services,Large,Programme
UK Statistics Authority,Office for National Statistics,11 July 2018,Short-Term Contract and Agency Staff,Economic Statistics Transformation,Concept Information Technology Ltd T/A Concept Resourcing,94322," 3,061.43 ", Information Management Services,Large,Programme
UK Statistics Authority,Office for National Statistics,11 July 2018,Short-Term Contract and Agency Staff,Public Policy Analysis,Concept Information Technology Ltd T/A Concept Resourcing,94322," 1,377.85 ", Information Management Services,Large,Programme
UK Statistics Authority,Office for National Statistics,11 July 2018,Short-Term Contract and Agency Staff,Public Policy Analysis,Concept Information Technology Ltd T/A Concept Resourcing,94322," 2,987.48 ", Information Management Services,Large,Programme
UK Statistics Authority,Office for National Statistics,11 July 2018,ICT Outsourcing and Maintenance/Support,Digital Services and Technology,SCC,94324," 2,162.23 ", Information Management Services,Large,Programme
UK Statistics Authority,Office for National Statistics,11 July 2018,IT Purchases > 2K,Digital Services and Technology,Methods Digital Ltd,94324," 20,953.06 ", Computer Hardware,Large,Programme
UK Statistics Authority,Office for National Statistics,11 July 2018,IT Purchases > 2K,Digital Services and Technology,Methods Digital Ltd,94324," 504,630.00 ", Computer Hardware,Large,Programme
UK Statistics Authority,Office for National Statistics,11 July 2018,Sofware Pool 4 Year,Digital Services and Technology,SCC,94324," 19,198.08 ", Computer Hardware,Large,Programme
UK Statistics Authority,Office for National Statistics,11 July 2018,IT Contractual Services,Digital Services and Technology,Methods Digital Ltd,94328," 31,950.00 ", Information Management Services,Large,Programme
UK Statistics Authority,Office for National Statistics,11 July 2018,IT Contractual Services,Digital Services and Technology,Methods Digital Ltd,94328," 21,060.00 ", Information Management Services,Large,Programme
UK Statistics Authority,Office for National Statistics,11 July 2018,IT Contractual Services,Digital Services and Technology,Methods Digital Ltd,94328," 11,700.00 ", Information Management Services,Large,Programme
UK Statistics Authority,Office for National Statistics,11 July 2018,Consultancy,Digital Services and Technology,Armakuni Ltd,94333," 47,280.00 ", Information Management Services,SME,Programme
UK Statistics Authority,Office for National Statistics,11 July 2018,Contractors,"Public, Population and Policy - Transformation",Certeco Ltd,94334," 58,440.00 ", Information Management services,Large,Programme
UK Statistics Authority,Office for National Statistics,11 July 2018,IT Contractual Services,Digital Services and Technology,Cloudwick Technologies UK,94335," 34,440.00 ", Cloud Services,SME,Programme
UK Statistics Authority,Office for National Statistics,11 July 2018,Consultancy,Digital Services and Technology,Armakuni Ltd,94336," 45,120.00 ", Information Management Services,SME,Programme
UK Statistics Authority,Office for National Statistics,11 July 2018,ICT Outsourcing and Maintenance/Support,Digital Services and Technology,Armakuni Ltd,94336," 4,692.60 ", Information Management Services,SME,Programme
UK Statistics Authority,Office for National Statistics,12 July 2018,Procurement Card,"Finance, Audit and Business Development",Royal Bank of Scotland,94350," 66,726.01 ", Multiple Procurement Card Purchases  ,Large,Programme
UK Statistics Authority,Office for National Statistics,12 July 2018,Stationery,"Finance, Audit and Business Development",Royal Bank of Scotland,94350," 6,266.64 ", Multiple Procurement Card Stationery Purchases  ,Large,Programme
UK Statistics Authority,Office for National Statistics,16 July 2018,Travel and Subsistence,"Finance, Audit and Business Development",Corporate Travel Management ,94643," 56,850.69 ", Travel and Accommodation Booking Service ,SME,Programme
UK Statistics Authority,Office for National Statistics,16 July 2018,IT Contractual Services,Digital Services and Technology,QA Ltd,94647," 411,009.00 ", Information Management Services,Large,Programme
UK Statistics Authority,Office for National Statistics,16 July 2018,Contractors,Digital Services and Technology,Parity Resources Limited,94648," 12,175.20 ", Information Management Services,Large,Programme
UK Statistics Authority,Office for National Statistics,16 July 2018,Contractors,Digital Services and Technology,Parity Resources Limited,94648," 39,628.46 ", Information Management Services,Large,Programme
UK Statistics Authority,Office for National Statistics,16 July 2018,Contractors,Economic Statistics Transformation,Parity Resources Limited,94648," 13,832.64 ", Information Management Services,Large,Programme
UK Statistics Authority,Office for National Statistics,16 July 2018,Contractors,"Finance, Audit and Business Development",Parity Resources Limited,94648," 12,816.00 ", Information Management Services,Large,Programme
UK Statistics Authority,Office for National Statistics,16 July 2018,Contractors,People and Business Services,Parity Resources Limited,94648," 5,639.04 ", Information Management Services,Large,Programme
UK Statistics Authority,Office for National Statistics,16 July 2018,Contractors,Policy and Communication,Parity Resources Limited,94648," 13,513.50 ", Information Management Services,Large,Programme
UK Statistics Authority,Office for National Statistics,16 July 2018,Contractors,"Public, Population and Policy - Transformation",Parity Resources Limited,94648," 13,072.32 ", Information Management Services,Large,Programme
UK Statistics Authority,Office for National Statistics,16 July 2018,Contractors,"Public, Population and Policy - Transformation",Parity Resources Limited,94648," 28,579.68 ", Information Management Services,Large,Programme
UK Statistics Authority,Office for National Statistics,16 July 2018,IT Contractual Services,Digital Services and Technology,Parity Resources Limited,94648," 29,217.36 ", Information Management Services,Large,Programme
UK Statistics Authority,Office for National Statistics,16 July 2018,Short-Term Contract and Agency Staff,Policy and Communication,Parity Resources Limited,94648, 188.52 , Information Management Services,Large,Programme
UK Statistics Authority,Office for National Statistics,16 July 2018,Short-Term Contract and Agency Staff,"Public, Population and Policy - Operations",Parity Resources Limited,94648," 10,005.48 ", Information Management Services,Large,Programme
UK Statistics Authority,Office for National Statistics,16 July 2018,Short-Term Contract and Agency Staff,"Public, Population and Policy - Operations",Parity Resources Limited,94648," 15,794.25 ", Information Management Services,Large,Programme
UK Statistics Authority,Office for National Statistics,16 July 2018,Short-Term Contract and Agency Staff,"Public, Population and Policy - Operations",Parity Resources Limited,94648," 2,445.31 ", Information Management Services,Large,Programme
UK Statistics Authority,Office for National Statistics,16 July 2018,Contractors,"Finance, Audit and Business Development",Certeco Ltd,94651," 81,060.00 ", Information Management services,Large,Programme
UK Statistics Authority,Office for National Statistics,17 July 2018,Facilities Management Contract Payments,"Finance, Audit and Business Development",Vinci Construction UK Limited,94954," 297,101.63 ", Facility Management Services,Large,Programme
UK Statistics Authority,Office for National Statistics,17 July 2018,Electricity,People and Business Services,EDF Energy,30000954," 26,806.79 ", Electricity Charges Titchfield,Large,Programme
UK Statistics Authority,Office for National Statistics,18 July 2018,Travel and Subsistence,"Finance, Audit and Business Development",Corporate Travel Management ,95328," 39,022.39 ", Travel and Accommodation Booking Service ,SME,Programme
UK Statistics Authority,Office for National Statistics,19 July 2018,ICT Outsourcing and Maintenance/Support,Digital Services and Technology,Lexmark International Ltd,95342," 26,954.89 ", Information Management Services,Large,Programme
UK Statistics Authority,Office for National Statistics,20 July 2018,ICT Outsourcing and Maintenance/Support,Digital Services and Technology,Software Box Ltd,95504," 83,351.23 ", Software Licenses,SME,Programme
UK Statistics Authority,Office for National Statistics,20 July 2018,IT Contractual Services,Digital Services and Technology,QA Ltd,95506," 54,540.00 ", Information Management Services,Large,Programme
UK Statistics Authority,Office for National Statistics,20 July 2018,Electricity,People and Business Services,EDF Energy,30000956," 26,378.44 ", Electricity Charges Newport,Large,Programme
UK Statistics Authority,Office for National Statistics,20 July 2018,ICT Outsourcing and Maintenance/Support,Digital Services and Technology,Amazon Web Services Inc,30000958," 41,580.88 ", Web Services,Large,Programme
UK Statistics Authority,Office for National Statistics,24 July 2018,Travel and Subsistence,"Finance, Audit and Business Development",Corporate Travel Management ,95912," 57,265.48 ", Travel and Accommodation Booking Service ,SME,Programme
UK Statistics Authority,Office for National Statistics,25 July 2018,Contractors,Economic Statistics Transformation,Mango Solutions,96165," 53,100.00 ", Information Management Services,SME,Programme
UK Statistics Authority,Office for National Statistics,25 July 2018,ICT Outsourcing and Maintenance/Support,Digital Services and Technology,Crown Hosting Data Centres Limited,96167," 40,436.41 ", Cloud Services,SME,Programme
UK Statistics Authority,Office for National Statistics,25 July 2018,ICT Outsourcing and Maintenance/Support,Digital Services and Technology,Crown Hosting Data Centres Limited,96167," 8,461.47 ", Cloud Services,SME,Programme
UK Statistics Authority,Office for National Statistics,25 July 2018,Incentive Payments,"Public, Population and Policy - Operations",Park Retail Ltd,96168," 7,734.50 ", Social Surveys Incentive Vouchers,Large,Programme
UK Statistics Authority,Office for National Statistics,25 July 2018,Incentive Payments,"Public, Population and Policy - Operations",Park Retail Ltd,96168," 53,533.39 ", Social Surveys Incentive Vouchers,Large,Programme
UK Statistics Authority,Office for National Statistics,25 July 2018,Incentive Payments,"Public, Population and Policy - Operations",Park Retail Ltd,96168," 3,140.15 ", Social Surveys Incentive Vouchers,Large,Programme
UK Statistics Authority,Office for National Statistics,25 July 2018,Incentive Payments,"Public, Population and Policy - Operations",Park Retail Ltd,96168," 5,241.36 ", Social Surveys Incentive Vouchers,Large,Programme
UK Statistics Authority,Office for National Statistics,25 July 2018,Incentive Payments,"Public, Population and Policy - Operations",Park Retail Ltd,96168," 8,510.62 ", Social Surveys Incentive Vouchers,Large,Programme
UK Statistics Authority,Office for National Statistics,25 July 2018,Contractors,Economic Statistics Transformation,Concept Information Technology Ltd T/A Concept Resourcing,96169," 3,778.24 ", Information Management Services,Large,Programme
UK Statistics Authority,Office for National Statistics,25 July 2018,Short-Term Contract and Agency Staff,Economic Statistics Transformation,Concept Information Technology Ltd T/A Concept Resourcing,96169," 7,386.86 ", Information Management Services,Large,Programme
UK Statistics Authority,Office for National Statistics,25 July 2018,Short-Term Contract and Agency Staff,Economic Statistics Transformation,Concept Information Technology Ltd T/A Concept Resourcing,96169," 3,778.24 ", Information Management Services,Large,Programme
UK Statistics Authority,Office for National Statistics,25 July 2018,Short-Term Contract and Agency Staff,Economic Statistics Transformation,Concept Information Technology Ltd T/A Concept Resourcing,96169," 1,218.70 ", Information Management Services,Large,Programme
UK Statistics Authority,Office for National Statistics,25 July 2018,Short-Term Contract and Agency Staff,"Finance, Audit and Business Development",Concept Information Technology Ltd T/A Concept Resourcing,96169, 470.50 , Information Management Services,Large,Programme
UK Statistics Authority,Office for National Statistics,25 July 2018,Short-Term Contract and Agency Staff,"Methods, Data and Research",Concept Information Technology Ltd T/A Concept Resourcing,96169, 423.53 , Information Management Services,Large,Programme
UK Statistics Authority,Office for National Statistics,25 July 2018,Short-Term Contract and Agency Staff,"Methods, Data and Research",Concept Information Technology Ltd T/A Concept Resourcing,96169," 3,986.84 ", Information Management Services,Large,Programme
UK Statistics Authority,Office for National Statistics,25 July 2018,Short-Term Contract and Agency Staff,National Accounts and Economic Statistics,Concept Information Technology Ltd T/A Concept Resourcing,96169," 2,787.31 ", Information Management Services,Large,Programme
UK Statistics Authority,Office for National Statistics,25 July 2018,Short-Term Contract and Agency Staff,National Accounts and Economic Statistics,Concept Information Technology Ltd T/A Concept Resourcing,96169," 3,277.96 ", Information Management Services,Large,Programme
UK Statistics Authority,Office for National Statistics,25 July 2018,Short-Term Contract and Agency Staff,National Accounts and Economic Statistics,Concept Information Technology Ltd T/A Concept Resourcing,96169," 3,965.54 ", Information Management Services,Large,Programme
UK Statistics Authority,Office for National Statistics,25 July 2018,ICT Outsourcing and Maintenance/Support,Digital Services and Technology,SCC,96173," 92,700.00 ", Information Management Services,Large,Programme
UK Statistics Authority,Office for National Statistics,25 July 2018,Major Works Over 25K,People and Business Services,Paramount Office Interiors Ltd,96181," 33,118.26 ", Major Works London,SME,Programme
UK Statistics Authority,Office for National Statistics,26 July 2018,Contractors,National Accounts and Economic Statistics,Mango Solutions,96192, 312.00 , Information Management Services,SME,Programme
UK Statistics Authority,Office for National Statistics,26 July 2018,Contractors,National Accounts and Economic Statistics,Mango Solutions,96192," 37,440.00 ", Information Management Services,SME,Programme
UK Statistics Authority,Office for National Statistics,26 July 2018,Contractors,Digital Services and Technology,E Synergy Solutions,96193," 25,695.00 ", Information Management Services ,SME,Programme
UK Statistics Authority,Office for National Statistics,26 July 2018,IT Contractual Services,Digital Services and Technology,E Synergy Solutions,96193," 27,144.00 ", Information Management Services ,SME,Programme
UK Statistics Authority,Office for National Statistics,26 July 2018,IT Contractual Services,Digital Services and Technology,E Synergy Solutions,96193," 61,980.00 ", Information Management Services ,SME,Programme
UK Statistics Authority,Office for National Statistics,26 July 2018,IT Contractual Services,Digital Services and Technology,E Synergy Solutions,96193," 25,920.00 ", Information Management Services ,SME,Programme
UK Statistics Authority,Office for National Statistics,26 July 2018,IT Contractual Services,Digital Services and Technology,E Synergy Solutions,96193," 256,223.58 ", Information Management Services ,SME,Programme
UK Statistics Authority,Office for National Statistics,26 July 2018,IT Contractual Services,Digital Services and Technology,E Synergy Solutions,96193," 18,322.26 ", Information Management Services ,SME,Programme
UK Statistics Authority,Office for National Statistics,26 July 2018,Non-IT Contractual Payments,Public Policy Analysis,Ricardo-AEA Ltd,96196," 56,586.60 ", Statistical Services,SME,Programme
UK Statistics Authority,Office for National Statistics,26 July 2018,Telecommunications,Digital Services and Technology,BT Global Services,96200," 51,589.93 ", Information Management Services,Large,Programme
UK Statistics Authority,Office for National Statistics,26 July 2018,Telecommunications,Digital Services and Technology,BT Global Services,96201," 49,466.77 ", Information Management Services,Large,Programme
UK Statistics Authority,Office for National Statistics,26 July 2018,Telecommunications,Public Policy Analysis,BT Global Services,96201, 187.01 , Information Management Services,Large,Programme
UK Statistics Authority,Office for National Statistics,26 July 2018,ICT Outsourcing and Maintenance/Support,Digital Services and Technology,Equiniti Limited,96205," 10,547.34 ", Information Management Services,Large,Programme
UK Statistics Authority,Office for National Statistics,26 July 2018,ICT Outsourcing and Maintenance/Support,Digital Services and Technology,Equiniti Limited,96205," 36,665.46 ", Information Management Services,Large,Programme
UK Statistics Authority,Office for National Statistics,26 July 2018,Capitalised Consultancy - IT,"Finance, Audit and Business Development",Phoenix Software Ltd,96206," 8,400.00 ", Information Management Services,SME,Programme
UK Statistics Authority,Office for National Statistics,26 July 2018,Specialist User and Software,"Finance, Audit and Business Development",Phoenix Software Ltd,96206," 494,874.00 ", Software Licenses,SME,Programme
UK Statistics Authority,Office for National Statistics,26 July 2018,IT Contractual Services,Digital Services and Technology,Methods Digital Ltd,96209," 40,950.00 ", Information Management Services,Large,Programme
UK Statistics Authority,Office for National Statistics,26 July 2018,IT Contractual Services,Digital Services and Technology,Methods Digital Ltd,96209," 18,900.00 ", Information Management Services,Large,Programme
UK Statistics Authority,Office for National Statistics,26 July 2018,IT Contractual Services,Digital Services and Technology,Methods Digital Ltd,96209," 18,900.00 ", Information Management Services,Large,Programme
UK Statistics Authority,Office for National Statistics,26 July 2018,IT Contractual Services,Digital Services and Technology,Methods Digital Ltd,96209," 32,370.00 ", Information Management Services,Large,Programme
UK Statistics Authority,Office for National Statistics,26 July 2018,Contractors,Digital Services and Technology,Certes Computing Ltd,96210," 13,898.88 ", Information Management Services,SME,Programme
UK Statistics Authority,Office for National Statistics,26 July 2018,Contractors,Digital Services and Technology,Certes Computing Ltd,96210," 13,834.94 ", Information Management Services,SME,Programme
UK Statistics Authority,Office for National Statistics,26 July 2018,Contractors,Digital Services and Technology,LA International,96211," 27,488.92 ", Information Management Services,SME,Programme
UK Statistics Authority,Office for National Statistics,26 July 2018,Contractors,Digital Services and Technology,LA International,96211," 39,693.17 ", Information Management Services,SME,Programme
UK Statistics Authority,Office for National Statistics,26 July 2018,Contractors,"Methods, Data and Research",LA International,96211," 7,497.00 ", Information Management Services,SME,Programme
UK Statistics Authority,Office for National Statistics,26 July 2018,Consultancy,"Public, Population and Policy - Operations",Ernst & Young Llp,96214," 37,800.00 ", Census Information Management Services,Large,Programme
UK Statistics Authority,Office for National Statistics,26 July 2018,Contractors,Digital Services and Technology,Parity Resources Limited,96216," 14,738.40 ", Information Management Services,Large,Programme
UK Statistics Authority,Office for National Statistics,26 July 2018,Contractors,Digital Services and Technology,Parity Resources Limited,96216," 23,887.98 ", Information Management Services,Large,Programme
UK Statistics Authority,Office for National Statistics,26 July 2018,Contractors,Digital Services and Technology,Parity Resources Limited,96216," 12,495.60 ", Information Management Services,Large,Programme
UK Statistics Authority,Office for National Statistics,26 July 2018,Contractors,"Finance, Audit and Business Development",Parity Resources Limited,96216, 6.72 , Information Management Services,Large,Programme
UK Statistics Authority,Office for National Statistics,26 July 2018,Contractors,People and Business Services,Parity Resources Limited,96216," 7,048.80 ", Information Management Services,Large,Programme
UK Statistics Authority,Office for National Statistics,26 July 2018,IT Contractual Services,Digital Services and Technology,Parity Resources Limited,96216," 15,203.40 ", Information Management Services,Large,Programme
UK Statistics Authority,Office for National Statistics,26 July 2018,Short-Term Contract and Agency Staff,"Finance, Audit and Business Development",Parity Resources Limited,96216," 5,649.96 ", Information Management Services,Large,Programme
UK Statistics Authority,Office for National Statistics,26 July 2018,Short-Term Contract and Agency Staff,People and Business Services,Parity Resources Limited,96216," 3,824.75 ", Information Management Services,Large,Programme
UK Statistics Authority,Office for National Statistics,26 July 2018,Short-Term Contract and Agency Staff,Policy and Communication,Parity Resources Limited,96216," 3,609.41 ", Information Management Services,Large,Programme
UK Statistics Authority,Office for National Statistics,26 July 2018,Short-Term Contract and Agency Staff,"Public, Population and Policy - Operations",Parity Resources Limited,96216," 3,390.96 ", Information Management Services,Large,Programme
UK Statistics Authority,Office for National Statistics,26 July 2018,Short-Term Contract and Agency Staff,"Public, Population and Policy - Transformation",Parity Resources Limited,96216," 14,001.48 ", Information Management Services,Large,Programme
UK Statistics Authority,Office for National Statistics,26 July 2018,Consultancy,"Public, Population and Policy - Transformation",Certeco Ltd,96220," 74,904.00 ", Information Management services,Large,Programme
UK Statistics Authority,Office for National Statistics,26 July 2018,Contractors,"Public, Population and Policy - Transformation",Certeco Ltd,96220," 7,200.00 ", Information Management services,Large,Programme
UK Statistics Authority,Office for National Statistics,26 July 2018,ICT Outsourcing and Maintenance/Support,Digital Service and Technology,Armakuni Ltd,96221," 57,600.00 ", Information Management Services,SME,Programme
UK Statistics Authority,Office for National Statistics,27 July 2018,Capital Major Works > 25K,People and Business Services,Paramount Office Interiors Ltd,96236," 158,249.82 ", Major Works Titchfield,SME,Programme
UK Statistics Authority,Office for National Statistics,27 July 2018,Major Works Over 25K,People and Business Services,Paramount Office Interiors Ltd,96236," 68,993.14 ", Major Works Titchfield,SME,Programme
UK Statistics Authority,Office for National Statistics,30 July 2018,IT Management and Change,Digital Services and Technology,SCC,96611," 47,768.40 ", Information Management Services,Large,Programme
UK Statistics Authority,Office for National Statistics,31 July 2018,ICT Outsourcing and Maintenance/Support,Digital Services and Technology,Amazon Web Services Inc,30000974," 59,262.77 ", Web Services,Large,Programme
